fUSD/lending_fUSD_20250105
["ID","MTS","AMOUNT","RATE_DAILY","PERIOD"]
[347684987,1736059846679,-352.63392716,9.999e-05,2]
[347684989,1736059846689,-500.0,9.999e-05,2]
[347684992,1736059846700,-500.0,9.999e-05,2]
[347684994,1736059846712,-579.8,9.999e-05,2]
[347684997,1736059846725,-1334.23,9.999e-05,2]
[347684999,1736059846737,-35188.50711987,0.0001,2]
[347685001,1736059846748,-1328.92541708,0.0001,2]
[347685003,1736059846762,-20342.24929981,0.0001,2]
[347685008,1736059846794,-959.22159958,0.0001,2]
[347685012,1736059846848,-1541.10725272,0.0001,2]
[347685013,1736059846863,-743.3523116,0.0001,2]
[347685014,1736059846876,-1011.0,0.0001,2]
[347685015,1736059846889,-287.74099872,0.0001,2]
[347685016,1736060071517,-1800.0,0.0002,120]
[347685017,1736060071543,-500.0,0.0002,120]
[347685018,1736060071568,-500.0,0.0002,120]
[347685019,1736060071593,-500.0,0.0002,120]
[347685020,1736060071623,-500.0,0.0002,120]
[347685021,1736060071649,-500.0,0.0002,120]
[347685022,1736060071680,-413.87,0.0002,120]
[347685024,1736060226823,-150.0,0.00020252,120]
[347685025,1736060226850,-150.0,0.00020466,120]
[347685026,1736060226877,-150.0,0.00020892,120]
[347685027,1736060226903,-150.0,0.00020907,120]
[347685028,1736060226935,-150.0,0.00020943,120]
[347685029,1736060226967,-985.1848705,0.00021,120]
[347685030,1736060226995,-2207.03668059,0.00021,120]
[347685031,1736060227021,-800.0,0.00021,120]
[347685032,1736060227049,-150.0,0.0002112,120]
[347685033,1736060227076,-150.0,0.00021325,120]
[347685034,1736060227103,-150.0,0.00021472,120]
[347685035,1736060227131,-150.0,0.00021575,120]
[347685036,1736060227157,-150.0,0.00021616,120]
[347685037,1736060227184,-150.0,0.00021705,120]
[347685038,1736060227211,-150.0,0.00021785,120]
[347685039,1736060227236,-150.0,0.00021812,120]
[347685040,1736060227263,-150.0,0.00021911,120]
[347685041,1736060227289,-845.08057753,0.00021917,120]
[347685042,1736060227317,-150.0,0.00021946,120]
[347685043,1736060227346,-10000.0,0.00022,120]
[347685044,1736060227373,-1000.0,0.00022,120]
[347685045,1736060430749,150.0,0.00020986,120]
[347685046,1736060490903,150.0,0.00020814,120]
[347685047,1736060546531,515918.97,0.00022,120]
[347685048,1736060551335,150.0,0.0002195,120]
[347685049,1736060555130,10000.0,0.00022,120]
[347685050,1736060594695,12382.0,0.00022,120]
[347685051,1736060603357,500.0,0.0002,120]
[347685052,1736060603610,500.0,0.0002,120]
[347685053,1736060603878,500.0,0.0002,120]
[347685054,1736060604355,500.0,0.0002,120]
[347685055,1736060604636,500.0,0.0002,120]
[347685056,1736060604897,500.0,0.0002,120]
[347685057,1736060605348,500.0,0.0002,120]
[347685058,1736060605388,500.0,0.0002,120]
[347685059,1736060605632,500.0,0.0002,120]
[347685060,1736060606034,500.0,0.0002,120]
[347685061,1736060606286,500.0,0.0002,120]
[347685062,1736060606514,500.0,0.0002,120]
[347685063,1736060606826,500.0,0.0002,120]
[347685064,1736060607136,500.0,0.0002,120]
[347685065,1736060607391,500.0,0.0002,120]
[347685066,1736060607706,500.0,0.0002,120]
[347685067,1736060608175,500.0,0.0002,120]
[347685068,1736060608409,500.0,0.0002,120]
[347685069,1736060608665,519.08749227,0.0002,120]
[347685070,1736060610770,150.0,0.00021987,120]
[347685071,1736060689887,4995.010516,0.0002,120]
[347685072,1736060729940,4597.04429171,0.00022,120]
[347685073,1736060731582,150.0,0.00020596,120]
[347685074,1736060790774,150.0,0.00021793,120]
[347685075,1736060823160,-560.31,8.219e-05,2]
[347685076,1736060850003,2500.0,9.999e-05,120]
[347685077,1736060850274,222.66219455,0.00010273,120]
[347685078,1736060851572,150.0,0.00020999,120]
[347685084,1736060971298,150.0,0.00020602,120]
[347685085,1736061030708,150.0,0.00020192,120]
[347685096,1736061031404,-176.7,9.136e-05,2]
[347685097,1736061031414,-963.77,9.138e-05,2]
[347685099,1736061031423,-300.0,9.138e-05,2]
[347685100,1736061031433,-838.0,9.177e-05,2]
[347685101,1736061031442,-250.0,9.177e-05,2]
[347685102,1736061031451,-270.54,9.181e-05,2]
[347685103,1736061031460,-432.18,9.196e-05,2]
[347685104,1736061031469,-167.07,9.467e-05,2]
[347685105,1736061031478,-318.011,9.5e-05,2]
[347685106,1736061031487,-300.0,9.699e-05,2]
[347685107,1736061031497,-137.55827351,9.7e-05,2]
[347685108,1736061031508,-14510.14122649,9.7e-05,2]
[347685109,1736061031517,-1437.253,9.796e-05,2]
[347685110,1736061031526,-171.162,9.796e-05,2]
[347685111,1736061031544,-500.25217583,9.797e-05,2]
[347685112,1736061031556,-500.0,9.797e-05,2]
[347685113,1736061031566,-500.0,9.797e-05,2]
[347685114,1736061031575,-580.37,9.797e-05,2]
[347685115,1736061031585,-500.0,9.797e-05,2]
[347685116,1736061031595,-636.41,9.797e-05,2]
[347685117,1736061031604,-500.0,9.797e-05,2]
[347685118,1736061031614,-500.0,9.797e-05,2]
[347685119,1736061031623,-500.0,9.797e-05,2]
[347685120,1736061031634,-500.0,9.797e-05,2]
[347685121,1736061031644,-500.0,9.797e-05,2]
[347685122,1736061031654,-500.0,9.797e-05,2]
[347685123,1736061031663,-500.0,9.797e-05,2]
[347685124,1736061031672,-500.0,9.797e-05,2]
[347685125,1736061031682,-500.0,9.797e-05,2]
[347685126,1736061031691,-500.0,9.797e-05,2]
[347685127,1736061031701,-500.0,9.797e-05,2]
[347685128,1736061031711,-3011.44219768,9.797e-05,2]
[347685129,1736061031724,-2467.66780232,9.797e-05,2]
[347685130,1736061031734,-383.60791326,9.799e-05,2]
[347685131,1736061031743,-500.0,9.799e-05,2]
[347685132,1736061031753,-2850.0,9.799e-05,2]
[347685133,1736061031763,-4492.56,9.799e-05,2]
[347685134,1736061031772,-2767.13,9.799e-05,2]
[347685135,1736061031782,-1770.3119,9.799e-05,2]
[347685136,1736061031791,-2246.41,9.799e-05,2]
[347685137,1736061031801,-5373.61,9.799e-05,2]
[347685138,1736061031810,-3161.07,9.799e-05,2]
[347685139,1736061031820,-500.0,9.799e-05,2]
[347685140,1736061031829,-500.0,9.799e-05,2]
[347685141,1736061031839,-1314.76,9.799e-05,2]
[347685142,1736061031848,-461276.8144,9.8e-05,2]
[347685143,1736061031858,-300.0,9.8e-05,2]
[347685144,1736061031867,-200.0,9.897e-05,2]
[347685145,1736061031877,-6398.4153,9.898e-05,2]
[347685146,1736061031887,-1977.9441,9.899e-05,2]
[347685147,1736061031897,-1321.7928,9.899e-05,2]
[347685148,1736061031906,-862.2616,9.899e-05,2]
[347685149,1736061031916,-1000.0,9.899e-05,2]
[347685150,1736061031925,-1000.0,9.9e-05,2]
[347685151,1736061031934,-500.0,9.997e-05,2]
[347685153,1736061031943,-500.0,9.997e-05,2]
[347685155,1736061031953,-500.0,9.997e-05,2]
[347685157,1736061031962,-500.0,9.997e-05,7]
[347685159,1736061031971,-218.7,9.997e-05,2]
[347685161,1736061031980,-225.07,9.997e-05,2]
[347685163,1736061031990,-500.0,9.997e-05,2]
[347685165,1736061031999,-500.0,9.997e-05,2]
[347685167,1736061032008,-500.0,9.997e-05,2]
[347685169,1736061032017,-681.91,9.997e-05,2]
[347685171,1736061032026,-500.0,9.997e-05,2]
[347685173,1736061032036,-500.0,9.997e-05,2]
[347685175,1736061032045,-742.94,9.997e-05,2]
[347685177,1736061032059,-500.0,9.997e-05,2]
[347685179,1736061032068,-484.92,9.997e-05,2]
[347685181,1736061032078,-151.98,9.997e-05,2]
[347685183,1736061032087,-500.0,9.997e-05,2]
[347685186,1736061032097,-184.24,9.997e-05,2]
[347685188,1736061032106,-510.98,9.997e-05,2]
[347685190,1736061032116,-619.8,9.997e-05,2]
[347685192,1736061032125,-500.0,9.997e-05,2]
[347685194,1736061032136,-262.06,9.997e-05,2]
[347685196,1736061032146,-440.61,9.997e-05,2]
[347685198,1736061032155,-206.93,9.997e-05,2]
[347685200,1736061032164,-332.01,9.997e-05,2]
[347685202,1736061032173,-500.0,9.997e-05,2]
[347685203,1736061032182,-160.16,9.997e-05,2]
[347685205,1736061032194,-500.0,9.997e-05,2]
[347685207,1736061032205,-1330.6,9.997e-05,2]
[347685210,1736061032215,-449.46,9.997e-05,2]
[347685234,1736061032224,-500.0,9.997e-05,2]
[347685236,1736061032468,-500.0,9.997e-05,2]
[347685238,1736061032478,-727.73,9.997e-05,2]
[347685240,1736061032487,-500.0,9.997e-05,2]
[347685243,1736061032497,-5000.0,9.997e-05,2]
[347685244,1736061032506,-500.0,9.997e-05,2]
[347685246,1736061032516,-500.0,9.997e-05,2]
[347685248,1736061032525,-500.0,9.997e-05,2]
[347685250,1736061032534,-1842.51,9.997e-05,2]
[347685252,1736061032543,-476.53,9.997e-05,2]
[347685254,1736061032553,-500.0,9.997e-05,2]
[347685256,1736061032562,-565.53712036,9.997e-05,2]
[347685258,1736061032572,-500.0,9.997e-05,2]
[347685260,1736061032581,-301.88,9.997e-05,2]
[347685261,1736061032590,-500.0,9.997e-05,2]
[347685262,1736061032600,-500.0,9.997e-05,2]
[347685263,1736061032610,-1118.2,9.997e-05,2]
[347685264,1736061032619,-500.0,9.997e-05,2]
[347685265,1736061032629,-500.0,9.997e-05,2]
[347685266,1736061032639,-175.21,9.997e-05,2]
[347685267,1736061032649,-499.32,9.997e-05,2]
[347685268,1736061032658,-263.1,9.997e-05,2]
[347685269,1736061032672,-500.0,9.997e-05,2]
[347685270,1736061032681,-500.0,9.997e-05,2]
[347685271,1736061032691,-170.12,9.997e-05,2]
[347685272,1736061032700,-500.0,9.997e-05,2]
[347685273,1736061032709,-555.64,9.997e-05,2]
[347685274,1736061032719,-500.0,9.997e-05,2]
[347685275,1736061032728,-500.0,9.997e-05,2]
[347685276,1736061032737,-500.0,9.997e-05,2]
[347685277,1736061032747,-500.0,9.997e-05,2]
[347685278,1736061032756,-500.0,9.997e-05,2]
[347685279,1736061032765,-500.0,9.997e-05,2]
[347685280,1736061032775,-500.0,9.997e-05,2]
[347685281,1736061032784,-1278.64,9.997e-05,2]
[347685282,1736061032793,-500.0,9.997e-05,2]
[347685283,1736061032804,-500.0,9.997e-05,2]
[347685284,1736061032814,-500.0,9.997e-05,2]
[347685285,1736061032823,-500.0,9.997e-05,2]
[347685286,1736061032833,-500.0,9.997e-05,2]
[347685287,1736061032842,-826.88,9.997e-05,2]
[347685288,1736061032852,-500.0,9.997e-05,2]
[347685289,1736061032861,-500.0,9.997e-05,2]
[347685290,1736061032871,-500.0,9.997e-05,2]
[347685291,1736061032881,-500.0,9.997e-05,2]
[347685292,1736061032890,-500.0,9.997e-05,2]
[347685293,1736061032900,-500.0,9.997e-05,2]
[347685294,1736061032910,-500.0,9.997e-05,2]
[347685295,1736061032919,-500.0,9.997e-05,2]
[347685296,1736061032928,-500.0,9.997e-05,2]
[347685297,1736061032938,-500.0,9.997e-05,2]
[347685298,1736061032947,-500.0,9.997e-05,2]
[347685299,1736061032957,-500.0,9.997e-05,2]
[347685300,1736061032967,-500.0,9.997e-05,2]
[347685301,1736061032976,-1053.27,9.997e-05,2]
[347685302,1736061032985,-500.0,9.997e-05,2]
[347685303,1736061032993,-522.19,9.997e-05,2]
[347685304,1736061033002,-500.0,9.997e-05,2]
[347685305,1736061033010,-500.0,9.997e-05,2]
[347685306,1736061033019,-500.0,9.997e-05,2]
[347685307,1736061033028,-500.0,9.997e-05,2]
[347685308,1736061033037,-500.0,9.997e-05,2]
[347685309,1736061033046,-500.0,9.997e-05,2]
[347685310,1736061033056,-500.0,9.997e-05,2]
[347685311,1736061033065,-500.0,9.997e-05,2]
[347685312,1736061033075,-500.0,9.997e-05,2]
[347685313,1736061033084,-500.0,9.997e-05,2]
[347685314,1736061033094,-978.37,9.998e-05,2]
[347685315,1736061033104,-651.28,9.998e-05,2]
[347685316,1736061033113,-500.0,9.998e-05,2]
[347685317,1736061033123,-905.61,9.998e-05,2]
[347685318,1736061033133,-500.0,9.998e-05,2]
[347685319,1736061033142,-581.32,9.998e-05,2]
[347685320,1736061033152,-894.3,9.998e-05,2]
[347685321,1736061033161,-3503.95,9.998e-05,2]
[347685322,1736061033170,-829.74,9.998e-05,2]
[347685323,1736061033179,-1697.28,9.998e-05,2]
[347685324,1736061033189,-2886.33,9.998e-05,2]
[347685325,1736061033202,-590.39,9.998e-05,2]
[347685326,1736061033211,-9245.38,9.998e-05,2]
[347685327,1736061033220,-500.0,9.998e-05,2]
[347685328,1736061033230,-500.0,9.998e-05,2]
[347685329,1736061033239,-1142.19,9.998e-05,2]
[347685330,1736061033250,-625.807993,9.998e-05,2]
[347685331,1736061033260,-155.987813,9.998e-05,2]
[347685332,1736061033270,-500.0,9.998e-05,2]
[347685333,1736061033281,-166.209132,9.998e-05,2]
[347685334,1736061033292,-1124.6,9.998e-05,2]
[347685335,1736061033302,-2029.79,9.998e-05,2]
[347685336,1736061033312,-2029.79,9.998e-05,2]
[347685337,1736061033322,-636.15,9.998e-05,2]
[347685338,1736061033331,-819.81,9.998e-05,2]
[347685339,1736061033341,-683.028084,9.998e-05,2]
[347685340,1736061033357,-500.0,9.998e-05,2]
[347685341,1736061033371,-3087.19,9.998e-05,2]
[347685342,1736061033383,-500.0,9.998e-05,2]
[347685343,1736061033393,-1088.5,9.998e-05,2]
[347685344,1736061033404,-500.0,9.998e-05,2]
[347685345,1736061033414,-4242.93,9.998e-05,2]
[347685346,1736061033424,-1936.97,9.998e-05,2]
[347685347,1736061033434,-500.0,9.998e-05,2]
[347685348,1736061033445,-902.25,9.998e-05,2]
[347685349,1736061033456,-8083.94,9.998e-05,2]
[347685350,1736061033466,-612.51,9.998e-05,2]
[347685351,1736061033476,-500.0,9.998e-05,2]
[347685352,1736061033485,-500.0,9.998e-05,2]
[347685353,1736061033495,-397.18553326,9.998e-05,2]
[347685354,1736061033512,-102.81446674,9.998e-05,2]
[347685355,1736061033522,-500.0,9.998e-05,2]
[347685356,1736061033532,-1281.48,9.998e-05,2]
[347685357,1736061033542,-500.0,9.998e-05,2]
[347685358,1736061033552,-1080.93,9.998e-05,2]
[347685359,1736061033561,-500.0,9.998e-05,2]
[347685360,1736061033571,-500.0,9.998e-05,2]
[347685361,1736061033581,-500.0,9.998e-05,2]
[347685362,1736061033591,-1066.05,9.998e-05,2]
[347685363,1736061033600,-5978.03,9.998e-05,2]
[347685364,1736061033610,-525.96,9.998e-05,2]
[347685365,1736061033620,-500.0,9.999e-05,2]
[347685366,1736061033630,-500.0,9.999e-05,2]
[347685367,1736061033641,-500.0,9.999e-05,2]
[347685368,1736061033651,-500.0,9.999e-05,2]
[347685369,1736061033661,-500.0,9.999e-05,2]
[347685370,1736061033671,-500.0,9.999e-05,2]
[347685371,1736061033680,-500.0,9.999e-05,2]
[347685372,1736061033690,-500.0,9.999e-05,2]
[347685373,1736061033700,-500.0,9.999e-05,2]
[347685374,1736061033710,-500.0,9.999e-05,2]
[347685375,1736061033719,-500.0,9.999e-05,2]
[347685376,1736061033729,-500.0,9.999e-05,2]
[347685377,1736061033740,-500.0,9.999e-05,2]
[347685378,1736061033749,-500.0,9.999e-05,2]
[347685379,1736061033760,-192.4016296,9.999e-05,2]
[347685380,1736061033770,-982.73,9.999e-05,2]
[347685381,1736061033780,-500.0,9.999e-05,2]
[347685382,1736061033790,-500.0,9.999e-05,2]
[347685383,1736061033800,-500.0,9.999e-05,2]
[347685384,1736061033810,-500.0,9.999e-05,2]
[347685385,1736061033820,-355.73,9.999e-05,2]
[347685386,1736061033830,-500.0,9.999e-05,2]
[347685387,1736061033840,-648.77,9.999e-05,2]
[347685388,1736061033851,-500.0,9.999e-05,2]
[347685389,1736061033861,-500.0,9.999e-05,2]
[347685390,1736061033871,-616.86,9.999e-05,2]
[347685391,1736061033880,-500.0,9.999e-05,2]
[347685392,1736061033891,-500.0,9.999e-05,2]
[347685393,1736061033901,-500.0,9.999e-05,2]
[347685394,1736061033911,-500.0,9.999e-05,2]
[347685395,1736061033921,-500.0,9.999e-05,2]
[347685396,1736061033931,-500.0,9.999e-05,2]
[347685397,1736061033941,-500.0,9.999e-05,2]
[347685398,1736061033951,-500.0,9.999e-05,2]
[347685399,1736061033960,-500.0,9.999e-05,2]
[347685400,1736061033970,-500.0,9.999e-05,2]
[347685401,1736061033979,-500.0,9.999e-05,2]
[347685402,1736061033989,-537.91,9.999e-05,2]
[347685403,1736061033998,-500.0,9.999e-05,2]
[347685404,1736061034008,-605.03583834,9.999e-05,2]
[347685405,1736061034018,-500.0,9.999e-05,2]
[347685406,1736061034028,-500.0,9.999e-05,2]
[347685407,1736061034037,-417.22598471,9.999e-05,2]
[347685408,1736061034047,-500.0,9.999e-05,2]
[347685409,1736061034056,-500.0,9.999e-05,2]
[347685410,1736061034067,-500.0,9.999e-05,2]
[347685411,1736061034076,-500.0,9.999e-05,2]
[347685412,1736061034086,-500.0,9.999e-05,2]
[347685413,1736061034095,-500.0,9.999e-05,2]
[347685414,1736061034106,-500.0,9.999e-05,2]
[347685415,1736061034115,-500.0,9.999e-05,2]
[347685416,1736061034125,-500.0,9.999e-05,2]
[347685417,1736061034135,-500.0,9.999e-05,2]
[347685418,1736061034145,-500.0,9.999e-05,2]
[347685419,1736061034155,-500.0,9.999e-05,2]
[347685420,1736061034164,-500.0,9.999e-05,2]
[347685421,1736061034173,-504.1,9.999e-05,2]
[347685422,1736061034183,-500.0,9.999e-05,2]
[347685423,1736061034198,-500.0,9.999e-05,2]
[347685424,1736061034208,-500.0,9.999e-05,2]
[347685425,1736061034218,-500.0,9.999e-05,2]
[347685426,1736061034228,-500.0,9.999e-05,2]
[347685427,1736061034238,-500.0,9.999e-05,2]
[347685428,1736061034248,-546.56901685,9.999e-05,2]
[347685429,1736061034258,-500.0,9.999e-05,2]
[347685430,1736061034268,-500.0,9.999e-05,2]
[347685431,1736061034278,-500.0,9.999e-05,2]
[347685432,1736061034288,-500.0,9.999e-05,2]
[347685433,1736061034298,-500.0,9.999e-05,2]
[347685434,1736061034308,-500.0,9.999e-05,2]
[347685435,1736061034318,-500.0,9.999e-05,2]
[347685436,1736061034328,-500.0,9.999e-05,2]
[347685437,1736061034338,-500.0,9.999e-05,2]
[347685438,1736061034348,-175.01,9.999e-05,2]
[347685439,1736061034358,-553.28,9.999e-05,2]
[347685440,1736061034368,-500.0,9.999e-05,2]
[347685441,1736061034378,-500.0,9.999e-05,2]
[347685442,1736061034389,-500.0,9.999e-05,2]
[347685443,1736061034398,-508.29,9.999e-05,2]
[347685444,1736061034408,-500.0,9.999e-05,2]
[347685445,1736061034418,-500.0,9.999e-05,2]
[347685446,1736061034427,-500.0,9.999e-05,2]
[347685447,1736061034437,-500.0,9.999e-05,2]
[347685448,1736061034447,-500.0,9.999e-05,2]
[347685449,1736061034457,-578.35,9.999e-05,2]
[347685450,1736061034467,-500.0,9.999e-05,2]
[347685451,1736061034476,-500.0,9.999e-05,2]
[347685452,1736061034486,-512.91,9.999e-05,2]
[347685453,1736061034496,-500.0,9.999e-05,2]
[347685454,1736061034505,-618.22,9.999e-05,2]
[347685455,1736061034515,-500.0,9.999e-05,2]
[347685456,1736061034524,-500.0,9.999e-05,2]
[347685457,1736061034534,-500.0,9.999e-05,2]
[347685458,1736061034544,-500.0,9.999e-05,2]
[347685459,1736061034553,-500.0,9.999e-05,2]
[347685460,1736061034563,-500.0,9.999e-05,2]
[347685461,1736061034572,-500.0,9.999e-05,2]
[347685462,1736061034583,-500.0,9.999e-05,2]
[347685463,1736061034592,-489.4972686,9.999e-05,2]
[347685464,1736061034601,-500.0,9.999e-05,2]
[347685465,1736061034611,-500.0,9.999e-05,2]
[347685466,1736061034621,-500.0,9.999e-05,2]
[347685467,1736061034630,-500.0,9.999e-05,2]
[347685468,1736061034641,-500.0,9.999e-05,2]
[347685469,1736061034650,-500.0,9.999e-05,2]
[347685470,1736061034660,-500.0,9.999e-05,2]
[347685471,1736061034670,-500.0,9.999e-05,2]
[347685472,1736061034680,-358.88,9.999e-05,2]
[347685473,1736061034690,-508.71,9.999e-05,2]
[347685474,1736061034699,-203.05,9.999e-05,2]
[347685475,1736061034709,-500.0,9.999e-05,2]
[347685476,1736061034718,-318.57,9.999e-05,2]
[347685477,1736061034728,-500.0,9.999e-05,2]
[347685478,1736061034737,-384.8,9.999e-05,2]
[347685479,1736061034747,-562.68,9.999e-05,2]
[347685480,1736061034757,-500.0,9.999e-05,2]
[347685481,1736061034767,-500.0,9.999e-05,2]
[347685482,1736061034776,-500.0,9.999e-05,2]
[347685483,1736061034786,-500.27,9.999e-05,2]
[347685484,1736061034796,-500.0,9.999e-05,2]
[347685485,1736061034805,-500.0,9.999e-05,2]
[347685486,1736061034815,-500.0,9.999e-05,2]
[347685487,1736061034825,-500.0,9.999e-05,2]
[347685488,1736061034835,-579.1497667,9.999e-05,2]
[347685489,1736061034846,-500.0,9.999e-05,2]
[347685490,1736061034855,-564.97,9.999e-05,2]
[347685491,1736061034865,-500.0,9.999e-05,2]
[347685492,1736061034879,-500.0,9.999e-05,2]
[347685493,1736061034890,-500.0,9.999e-05,2]
[347685494,1736061034900,-393.18,9.999e-05,2]
[347685495,1736061034910,-500.0,9.999e-05,2]
[347685496,1736061034919,-500.0,9.999e-05,2]
[347685497,1736061034929,-500.0,9.999e-05,2]
[347685498,1736061034939,-500.0,9.999e-05,2]
[347685499,1736061034948,-500.0,9.999e-05,2]
[347685500,1736061034958,-500.0,9.999e-05,2]
[347685501,1736061034967,-500.0,9.999e-05,2]
[347685502,1736061034978,-500.0,9.999e-05,2]
[347685503,1736061034988,-500.0,9.999e-05,2]
[347685504,1736061034998,-500.0,9.999e-05,2]
[347685505,1736061035008,-500.0,9.999e-05,2]
[347685506,1736061035018,-500.0,9.999e-05,2]
[347685507,1736061035027,-453.38,9.999e-05,2]
[347685508,1736061035036,-500.0,9.999e-05,2]
[347685509,1736061035046,-500.0,9.999e-05,2]
[347685510,1736061035055,-198.94,9.999e-05,2]
[347685511,1736061035065,-500.0,9.999e-05,2]
[347685512,1736061035075,-500.0,9.999e-05,2]
[347685513,1736061035085,-500.0,9.999e-05,2]
[347685514,1736061035094,-611.38327341,9.999e-05,2]
[347685515,1736061035104,-500.0,9.999e-05,2]
[347685516,1736061035114,-504.69844689,9.999e-05,2]
[347685517,1736061035123,-500.0,9.999e-05,2]
[347685518,1736061035133,-500.0,9.999e-05,2]
[347685519,1736061035143,-502.83437302,9.999e-05,2]
[347685520,1736061035153,-500.0,9.999e-05,2]
[347685521,1736061035163,-501.22629495,9.999e-05,2]
[347685522,1736061035172,-503.59328416,9.999e-05,2]
[347685523,1736061035181,-500.0,9.999e-05,2]
[347685524,1736061035191,-167.70408266,9.999e-05,2]
[347685525,1736061035206,-504.25399019,9.999e-05,2]
[347685526,1736061035216,-505.81777384,9.999e-05,2]
[347685527,1736061035225,-1159.54,9.999e-05,2]
[347685528,1736061035235,-502.73382178,9.999e-05,2]
[347685529,1736061035245,-500.0,9.999e-05,2]
[347685530,1736061035255,-500.0,9.999e-05,2]
[347685531,1736061035264,-500.0,9.999e-05,2]
[347685532,1736061035275,-500.0,9.999e-05,2]
[347685533,1736061035285,-500.0,9.999e-05,2]
[347685534,1736061035294,-500.0,9.999e-05,2]
[347685535,1736061035305,-594.39,9.999e-05,2]
[347685536,1736061035314,-500.0,9.999e-05,2]
[347685537,1736061035325,-502.55622211,9.999e-05,2]
[347685538,1736061035334,-500.0,9.999e-05,2]
[347685539,1736061035344,-1357.97,9.999e-05,2]
[347685540,1736061035353,-500.0,9.999e-05,2]
[347685541,1736061035363,-500.0,9.999e-05,2]
[347685542,1736061035373,-506.1602761,9.999e-05,2]
[347685543,1736061035383,-561.41,9.999e-05,2]
[347685544,1736061035393,-500.0,9.999e-05,2]
[347685545,1736061035403,-500.0,9.999e-05,2]
[347685546,1736061035412,-503.46535919,9.999e-05,2]
[347685547,1736061035422,-500.0,9.999e-05,2]
[347685548,1736061035432,-534.03933873,9.999e-05,2]
[347685549,1736061035441,-5045.41,9.999e-05,2]
[347685550,1736061035451,-500.0,9.999e-05,2]
[347685551,1736061035460,-500.0,9.999e-05,2]
[347685552,1736061035469,-233.37,9.999e-05,2]
[347685553,1736061035479,-500.0,9.999e-05,2]
[347685554,1736061035488,-500.0,9.999e-05,2]
[347685555,1736061035498,-235.34708801,9.999e-05,2]
[347685556,1736061035507,-500.0,9.999e-05,2]
[347685557,1736061035516,-500.0,9.999e-05,2]
[347685558,1736061035525,-500.0,9.999e-05,2]
[347685559,1736061035535,-500.0,9.999e-05,2]
[347685560,1736061035544,-500.0,9.999e-05,2]
[347685561,1736061035554,-5581.19,9.999e-05,2]
[347685562,1736061035563,-500.0,9.999e-05,2]
[347685563,1736061035573,-500.0,9.999e-05,2]
[347685564,1736061035583,-500.0,9.999e-05,2]
[347685565,1736061035592,-632.71,9.999e-05,2]
[347685566,1736061035601,-504.6828454,9.999e-05,2]
[347685567,1736061035611,-501.66396077,9.999e-05,2]
[347685568,1736061035622,-500.0,9.999e-05,2]
[347685569,1736061035631,-500.0,9.999e-05,2]
[347685570,1736061035641,-500.0,9.999e-05,2]
[347685571,1736061035650,-500.0,9.999e-05,2]
[347685572,1736061035660,-500.0,9.999e-05,2]
[347685573,1736061035669,-500.0,9.999e-05,2]
[347685574,1736061035678,-254.24,9.999e-05,2]
[347685575,1736061035688,-500.0,9.999e-05,2]
[347685576,1736061035698,-500.0,9.999e-05,2]
[347685577,1736061035707,-500.0,9.999e-05,2]
[347685578,1736061035716,-500.0,9.999e-05,2]
[347685579,1736061035726,-398.33420878,9.999e-05,2]
[347685580,1736061035735,-500.0,9.999e-05,2]
[347685581,1736061035744,-500.0,9.999e-05,2]
[347685582,1736061035753,-546.05,9.999e-05,2]
[347685583,1736061035763,-560.89,9.999e-05,2]
[347685584,1736061035772,-500.0,9.999e-05,2]
[347685585,1736061035782,-500.0,9.999e-05,2]